bitfinex-derivatives/quotes_ETHF0:USTF0_20250501
["timestamp","ask_amount","ask_price","bid_price","bid_amount"]
[1746091816800,4.5803,1819.8,1819.7,5.92181]
[1746091817201,0.7923,1819.8,1819.7,5.92181]
[1746091817400,0.7923,1819.8,1819.7,6.34277252]
[1746091817601,2.4055,1819.8,1819.7,6.34277252]
[1746091818104,6.1935,1819.8,1819.7,6.34277252]
[1746091818303,3.788,1819.8,1819.7,6.34277252]
[1746091819100,1.6018,1820.0,1819.9,1.09879]
[1746091819305,1.09879,1819.9,1819.8,4.60781]
[1746091819798,5.0,1819.9,1819.8,4.60781]
[1746091820004,5.0,1819.9,1819.8,1.09881]
[1746091820204,11.48859,1819.9,1819.8,1.09881]
[1746091820807,10.3898,1819.9,1819.8,1.09881]
[1746091821305,11.48859,1819.9,1819.8,1.09881]
[1746091821507,1.09885,1819.8,1819.7,4.30666]
[1746091821709,3.3965,1819.8,1819.7,4.30666]
[1746091821901,4.49535,1819.8,1819.7,4.30666]
[1746091822207,8.28335,1819.8,1819.7,4.30666]
[1746091824504,8.28335,1819.8,1819.7,3.2078]
[1746091824706,2.74737,1819.7,1819.3,7.33897492]
[1746091824902,1.09909,1819.4,1819.3,7.33897492]
[1746091825112,4.88709,1819.4,1819.3,7.33897492]
[1746091825297,4.88709,1819.4,1819.3,8.43812492]
[1746091825504,3.788,1819.4,1819.3,8.43812492]
[1746091825797,6.2626,1819.4,1819.3,8.43812492]
[1746091826008,6.2626,1819.4,1819.3,2.79105]
[1746091826209,2.4746,1819.4,1819.3,2.79105]
[1746091827109,2.4746,1819.4,1819.3,1.09915]
[1746091827309,6.2626,1819.4,1819.3,1.09915]
[1746091827709,1.09915,1819.3,1819.2,10.54677492]
[1746091828009,3.58975,1819.3,1819.2,8.43818492]
[1746091828210,7.37775,1819.3,1819.2,8.43818492]
[1746091828600,7.37775,1819.3,1819.2,1.09921]
[1746091829903,6.2786,1819.3,1819.2,1.09921]
[1746091830104,2.4906,1819.3,1819.2,1.09921]
[1746091830303,2.4906,1819.3,1819.2,2.75141]
[1746091831011,2.4906,1819.3,1819.2,1.09921]
[1746091831208,7.37775,1819.3,1819.2,1.09921]
[1746091831410,6.2786,1819.3,1819.2,1.09921]
[1746091831608,7.37775,1819.3,1819.2,1.09921]
[1746091832010,6.2786,1819.3,1819.2,1.09921]
[1746091832209,7.37775,1819.3,1819.2,1.09921]
[1746091832405,6.2786,1819.3,1819.2,1.09921]
[1746091833205,2.4906,1819.3,1819.2,1.09921]
[1746091833608,3.58975,1819.3,1819.2,1.09921]
[1746091834715,2.4906,1819.3,1819.2,1.09921]
[1746091835311,3.58975,1819.3,1819.2,1.09921]
[1746091836609,2.4906,1819.3,1819.2,1.09921]
[1746091836811,3.58975,1819.3,1819.2,1.09921]
[1746091837113,7.37775,1819.3,1819.2,1.09921]
[1746091838920,6.2786,1819.3,1819.2,1.09921]
[1746091839721,7.37775,1819.3,1819.2,1.09921]
[1746091847927,1.0994,1819.0,1818.9,1.09936]
[1746091848128,1.0994,1819.0,1818.7,11.94845492]
[1746091848129,1.09946,1818.8,1818.7,11.94845492]
[1746091848426,1.09946,1818.8,1818.7,8.43845492]
[1746091848929,2.70826,1818.8,1818.7,8.43845492]
[1746091849131,6.49626,1818.8,1818.7,8.43845492]
[1746091851631,1.09952,1818.7,1818.6,4.30735]
[1746091851824,2.72902,1818.7,1818.6,4.30735]
[1746091852223,6.51702,1818.7,1818.6,4.30735]
[1746091853133,5.4175,1818.7,1818.6,4.30735]
[1746091853328,3.788,1818.7,1818.6,4.30735]
[1746091853527,3.788,1818.7,1818.6,5.10495]
[1746091854127,1.09952,1818.7,1818.6,5.10495]
[1746091854335,1.09952,1818.7,1818.6,3.2078]
[1746091855136,4.88752,1818.7,1818.6,4.30738]
[1746091855536,4.88752,1818.7,1818.6,3.2078]
[1746091855838,4.88752,1818.7,1818.6,4.30738]
[1746091856237,4.88752,1818.7,1818.6,3.2078]
[1746091856542,4.88752,1818.7,1818.6,4.30738]
[1746091859741,3.788,1818.7,1818.6,9.30738]
[1746091860042,2.4042,1819.3,1819.2,1.09921]
[1746091860340,3.205,1819.3,1819.2,1.09921]
[1746091860836,3.205,1819.3,1819.2,2.72341]
[1746091861037,0.8008,1819.3,1819.2,5.93121]
[1746091861545,1.7192,1819.5,1819.4,1.09909]
[1746091861841,0.8008,1819.5,1819.4,1.09909]
[1746091862239,4.5888,1819.5,1819.4,1.09909]
[1746091865239,3.788,1819.5,1819.4,10.13689]
[1746091865543,3.788,1819.5,1819.4,10.55989]
[1746091866235,3.55922,1819.9,1819.8,1.09885]
[1746091866841,2.4604,1819.9,1819.8,1.09885]
[1746091867344,7.34719,1819.9,1819.8,1.09885]
[1746091868032,6.2484,1819.9,1819.8,1.09885]
[1746091868235,7.34719,1819.9,1819.8,1.09885]
[1746091868448,6.2484,1819.9,1819.8,1.09885]
[1746091868744,4.653,1819.9,1819.8,1.09885]
[1746091869233,6.3501,1819.9,1819.8,1.09885]
[1746091869639,7.44889,1819.9,1819.8,1.09885]
[1746091870033,6.3501,1819.9,1819.8,1.09885]
[1746091870238,3.788,1819.9,1819.8,4.30665]
[1746091870437,3.788,1819.9,1819.8,7.81565]
[1746091871647,3.788,1819.9,1819.8,8.23855]
[1746091872141,0.845,1820.1,1820.0,1.09873]
[1746091873146,4.633,1820.1,1820.0,1.09873]
[1746091873345,3.788,1820.1,1820.0,6.02153]
[1746091874246,0.838,1820.2,1820.1,1.09867]
[1746091874446,0.838,1820.2,1820.1,6.32167]
[1746091875145,4.626,1820.2,1820.1,6.32167]
[1746091875542,3.788,1820.2,1820.1,6.32167]
[1746091877248,1.09867,1820.1,1819.8,3.2078]
[1746091877445,0.8321,1820.0,1819.9,1.09879]
[1746091878152,6.3373,1820.0,1819.9,1.09879]
[1746091878449,7.43603,1820.0,1819.8,9.4223]
[1746091878648,1.7172,1819.9,1819.7,1.0989]
[1746091878852,2.81603,1819.9,1819.8,1.09885]
[1746091879244,6.60403,1819.9,1819.8,1.09885]
[1746091879750,5.5052,1819.9,1819.8,1.09885]
[1746091880253,5.5052,1819.9,1819.7,1.6877]
[1746091880446,1.7067,1819.8,1819.7,2.78661]
[1746091881353,1.09891,1819.7,1819.6,7.81473]
[1746091881554,5.4947,1819.8,1819.7,1.09891]
[1746091881950,6.59355,1819.8,1819.7,1.09891]
[1746091882344,1.09891,1819.7,1819.6,3.508]
[1746091882653,1.09903,1819.6,1819.5,1.09903]
[1746091882955,0.8316,1819.6,1819.4,12.5458]
[1746091883147,1.597,1819.5,1819.4,7.81489]
[1746091884353,5.385,1819.5,1819.4,7.81489]
[1746091885054,6.48403,1819.5,1819.4,7.81489]
[1746091885254,6.48403,1819.5,1819.4,4.60709]
[1746091885447,5.385,1819.5,1819.4,4.60709]
[1746091885856,6.48403,1819.5,1819.4,4.60709]
[1746091886057,5.385,1819.5,1819.4,4.60709]
[1746091886455,6.48403,1819.5,1819.4,4.60709]
[1746091887757,1.09914,1819.4,1819.3,1.09912]
[1746091887955,1.6021,1819.4,1819.3,1.09912]
[1746091888155,1.93062,1819.6,1819.5,1.09903]
[1746091889163,5.71862,1819.6,1819.5,1.09903]
[1746091889362,7.42742,1819.6,1819.5,1.09903]
[1746091889551,6.3284,1819.6,1819.5,1.09903]
[1746091889755,7.42737,1819.6,1819.5,1.09903]
[1746091896967,4.6196,1819.6,1819.5,1.09903]
[1746091897770,4.6196,1819.6,1819.5,2.81003]
[1746091898668,4.6196,1819.6,1819.5,6.32503]
[1746091899171,3.788,1819.6,1819.5,6.32503]
[1746091899371,3.788,1819.6,1819.5,6.74793]
[1746091901373,3.788,1819.6,1819.5,6.32503]
[1746091909574,4.6301,1819.6,1819.5,6.32503]
[1746091910673,3.788,1819.6,1819.5,6.32503]
[1746091913276,0.8672,1819.8,1819.7,1.09891]
[1746091913476,0.8672,1819.8,1819.7,4.30671]
[1746091913674,0.8672,1819.8,1819.7,5.88621]
[1746091914072,4.6552,1819.8,1819.7,5.88621]
[1746091914881,6.332,1819.8,1819.7,5.88621]
[1746091918274,4.6552,1819.8,1819.7,5.88621]
[1746091918773,3.788,1819.8,1819.7,5.88621]
[1746091920080,2.5216,1819.8,1819.7,5.88621]
[1746091920286,0.8517,1820.0,1819.9,1.09879]
[1746091920478,0.8517,1820.0,1819.9,7.82059]
[1746091921085,4.6397,1820.0,1819.9,7.82059]
[1746091921681,6.3848,1820.0,1819.9,7.82059]
[1746091926984,6.3848,1820.0,1819.8,1.09879]
[1746091926985,1.0988,1819.9,1819.8,1.09879]
[1746091927292,2.7782,1819.9,1819.8,1.09879]
[1746091927488,6.6794,1819.9,1819.8,1.09879]
[1746091927783,1.6794,1819.9,1819.8,1.09879]
[1746091928187,5.4674,1819.9,1819.8,1.09879]
[1746091928592,6.56619,1819.9,1819.8,1.09879]
[1746091928893,5.4674,1819.9,1819.8,1.09879]
[1746091934492,5.4674,1819.9,1819.8,2.70709]
[1746091935306,5.4674,1819.9,1819.8,1.09879]
[1746091936010,6.56619,1819.9,1819.8,1.09879]
[1746091936210,5.4674,1819.9,1819.8,1.09879]
[1746091936712,6.56619,1819.9,1819.8,1.09879]
[1746091937209,5.4674,1819.9,1819.8,1.09879]
[1746091938703,6.56619,1819.9,1819.8,1.09879]
[1746091938900,1.09885,1819.8,1819.7,4.30667]
[1746091939106,4.88684,1819.9,1819.8,1.09885]
[1746091942804,3.788,1819.9,1819.8,1.09885]
[1746091943415,3.788,1819.9,1819.8,2.78135]
[1746091943803,4.88679,1819.9,1819.8,1.09885]
[1746091944211,3.788,1819.9,1819.8,1.09885]
[1746091944413,3.788,1819.9,1819.8,2.78135]
[1746091949815,3.788,1819.9,1819.8,7.78135]
[1746091950013,3.788,1819.9,1819.8,8.20415]
[1746091950212,0.7889,1820.3,1820.2,1.09861]
[1746091951118,4.5769,1820.3,1820.2,1.09861]
[1746091951622,4.5769,1820.3,1820.2,2.70021]
[1746091951813,6.50315,1820.3,1820.2,2.70021]
[1746091952009,6.50315,1820.3,1820.2,1.09861]
[1746091952209,5.4046,1820.3,1820.2,1.09861]
[1746091952715,5.4046,1820.3,1820.2,2.67441]
[1746091952915,5.4046,1820.3,1820.1,4.60663]
[1746091953127,1.09861,1820.2,1820.1,3.508]
[1746091953616,1.09873,1820.0,1819.9,8.43771492]
[1746091954216,4.88673,1820.0,1819.9,8.43771492]
[1746091954723,3.788,1820.0,1819.9,8.43771492]
[1746091954920,3.788,1820.0,1819.9,1.09874]
[1746091955126,5.4125,1820.0,1819.9,1.09874]
[1746091956218,2.34308,1820.0,1819.9,1.09874]
[1746091956417,0.8041,1820.8,1820.7,1.09831]
[1746091957321,6.2519,1820.8,1820.7,1.09831]
[1746091957524,7.35015,1820.8,1820.7,1.09831]
[1746091957826,6.2519,1820.8,1820.7,1.09831]
[1746091958321,7.35015,1820.8,1820.7,1.09831]
[1746091958517,6.2519,1820.8,1820.7,1.09831]
[1746091958725,7.35015,1820.8,1820.7,1.09831]
[1746091959017,6.2519,1820.8,1820.6,1.7079]
[1746091959223,2.80144,1820.7,1820.6,1.09837]
[1746091960323,6.58944,1820.7,1820.6,1.09837]
[1746091963218,5.4911,1820.7,1820.6,1.09837]
[1746091963622,5.4911,1820.7,1820.6,2.76887]
[1746091965026,6.58941,1820.7,1820.6,2.76887]
[1746091965728,3.788,1820.7,1820.6,2.76887]
[1746091965928,3.788,1820.7,1820.6,5.97667]
[1746091968128,1.90708,1820.8,1820.7,1.09831]
[1746091968329,1.90708,1820.8,1820.7,2.68031]
[1746091969333,1.90708,1820.8,1820.7,1.09831]
[1746091969530,1.7336,1820.9,1820.6,3.2078]
[1746091969719,3.69943,1820.9,1820.8,1.09825]
[1746091970125,7.48743,1820.9,1820.8,1.09825]
[1746091970835,6.3892,1820.9,1820.8,1.09825]
[1746091971130,3.69939,1820.9,1820.8,1.09825]
[1746091971726,0.8593,1821.0,1820.9,1.09819]
[1746091971927,0.8593,1821.0,1820.9,3.57169]
[1746091972133,4.30584,1821.2,1821.1,1.09807]
[1746091972328,5.10664,1821.2,1821.1,1.09807]
[1746091972525,4.0086,1821.2,1821.1,1.09807]
[1746091972729,3.58821,1821.2,1821.1,1.09807]
[1746091973028,1.09807,1821.1,1821.0,2.75379]
[1746091973330,1.6894,1821.1,1821.0,2.75379]
[1746091974128,5.95205,1821.8,1821.4,1.09789]
[1746091974334,1.09783,1821.5,1821.4,4.60389]
[1746091975130,1.7381,1821.6,1821.5,1.09783]
[1746091975131,2.83589,1821.6,1821.5,1.09783]
[1746091975330,3.2078,1821.9,1821.6,1.09775]
[1746091975629,2.6093,1821.8,1821.5,1.0978]
[1746091975830,6.04364,1821.7,1821.4,1.6022]
[1746091976028,1.09777,1821.6,1821.4,1.6022]
[1746091976226,3.2078,1821.8,1821.4,1.6022]
[1746091976431,1.09777,1821.6,1821.5,3.506]
[1746091976632,1.7381,1821.7,1821.6,1.09777]
[1746091977032,18.15108965,1822.3,1822.1,1.09746]
[1746091977233,18.15108965,1822.3,1822.1,4.60346]
[1746091977636,19.82338965,1822.3,1822.1,6.20056]
[1746091977934,1.6723,1822.3,1822.2,1.0974]
[1746091978134,1.6847,1822.4,1822.3,1.09734]
[1746091978324,1.6847,1822.4,1822.2,6.48249]
[1746091978830,2.78199,1822.4,1822.2,6.48249]
[1746091979035,1.6847,1822.4,1822.3,1.09734]
[1746091979232,1.6847,1822.4,1822.1,3.506]
[1746091979431,3.2078,1822.3,1821.9,1.09757]
[1746091979636,1.09757,1822.0,1821.7,2.69477]
[1746091979935,1.5878,1821.9,1821.8,1.09765]
[1746091980637,0.8005,1821.9,1821.8,1.09765]
[1746091981241,0.8005,1821.9,1821.8,4.88565]
[1746091981430,0.8005,1821.9,1821.8,3.788]
[1746091981630,1.89809,1821.9,1821.8,3.788]
[1746091982131,1.09769,1821.8,1821.5,5.83]
[1746091982331,0.7873,1821.7,1821.6,1.09771]
[1746091983142,5.11178,1821.7,1821.3,3.505]
[1746091983436,1.09792,1821.4,1821.3,1.09791]
[1746091984737,4.30572,1821.4,1821.3,1.09791]
[1746091984938,2.67807,1821.5,1821.4,1.09789]
[1746091985334,3.48777,1821.5,1821.4,1.09789]
[1746091985637,1.09791,1821.4,1821.3,1.0979]
[1746091985937,2.67811,1821.4,1821.3,1.0979]
[1746091986335,1.5802,1821.4,1821.3,1.0979]
[1746091986735,2.67809,1821.4,1821.3,1.0979]
[1746091988036,1.09798,1821.3,1821.2,1.09795]
[1746091988337,3.52258,1821.3,1821.2,1.09795]
[1746091989127,3.52258,1821.3,1821.2,4.88595]
[1746091989342,3.52258,1821.3,1821.2,4.88601]
[1746091989535,2.4246,1821.3,1821.2,4.88601]
[1746091989741,0.8097,1821.5,1821.4,1.09789]
[1746091989942,2.474,1821.5,1821.4,1.09789]
[1746091992540,0.8433,1821.6,1821.5,1.09783]
[1746091993139,0.8433,1821.6,1821.5,8.09363]
[1746091993337,4.4304,1821.9,1821.8,1.09765]
[1746091993642,3.3196,1821.9,1821.8,1.09765]
[1746091994137,4.41719,1821.9,1821.8,1.09765]
[1746091994330,3.3196,1821.9,1821.8,1.09765]
[1746091994530,4.41719,1821.9,1821.8,1.09765]
[1746091994943,3.3196,1821.9,1821.8,1.09765]
[1746091996140,0.8314,1821.9,1821.8,1.09765]
[1746091996735,0.8314,1821.9,1821.8,2.76875]
[1746091997142,0.8314,1821.9,1821.8,6.55675]
[1746091997347,1.92899,1821.9,1821.8,4.88565]
[1746091997642,3.63829,1821.9,1821.8,4.88565]
[1746091998237,3.63829,1821.9,1821.8,1.09765]
[1746091998636,6.84609,1821.9,1821.8,1.09765]
[1746091998833,6.84609,1821.9,1821.6,2.76887]
[1746091998834,1.09771,1821.8,1821.7,1.09766]
[1746091999038,2.75581,1821.8,1821.7,1.09766]
[1746091999541,1.09776,1821.7,1821.6,1.09772]
[1746091999855,1.09777,1821.6,1821.5,3.2078]
[1746092000149,2.509,1821.7,1821.5,3.2078]
[1746092000150,2.509,1821.7,1821.6,1.09777]
[1746092000334,0.8509,1821.7,1821.6,1.09777]
[1746092000747,1.09777,1821.6,1821.5,4.30558]
[1746092000936,1.09783,1821.5,1821.4,2.80404]
[1746092001140,1.89303,1821.5,1821.4,2.80404]
[1746092001943,1.89303,1821.5,1821.4,1.09784]
[1746092002142,1.09789,1821.4,1821.3,4.69691]
[1746092002848,1.09795,1821.3,1821.0,3.56632]
[1746092003149,1.09811,1821.1,1821.0,1.09807]
[1746092003348,1.09805,1821.2,1821.1,1.09802]
[1746092003650,1.0982,1820.9,1820.8,1.0982]
[1746092004251,2.7355,1820.9,1820.8,1.0982]
[1746092004547,2.7355,1820.9,1820.8,1.09825]
[1746092004748,1.09826,1820.8,1820.7,1.09826]
[1746092005047,2.73553,1820.9,1820.8,1.09825]
[1746092005546,1.09827,1820.8,1820.7,1.09825]
[1746092006056,2.73553,1820.9,1820.8,1.09825]
[1746092006550,1.09837,1820.7,1820.6,1.09835]
[1746092006754,1.09837,1820.6,1820.5,2.83179]
[1746092008054,1.09837,1820.6,1820.5,1.7334]
[1746092008252,1.09849,1820.4,1820.3,2.7371]
[1746092008452,1.09849,1820.4,1820.3,4.3831]
[1746092008855,1.09849,1820.4,1820.3,4.38315]
[1746092009054,1.09847,1820.5,1820.4,1.09845]
[1746092009249,1.09832,1820.7,1820.6,1.09837]
[1746092009647,1.09837,1820.6,1820.5,2.74438]
[1746092010155,1.09837,1820.6,1820.5,6.53238]
[1746092010856,1.09836,1820.7,1820.6,1.09833]
[1746092011050,1.09836,1820.7,1820.6,2.80803]
[1746092011855,1.09836,1820.7,1820.6,1.7097]
[1746092012050,1.09836,1820.7,1820.6,2.80807]
[1746092013156,1.09836,1820.7,1820.6,1.7097]
[1746092013659,1.09836,1820.7,1820.6,2.80807]
[1746092013850,1.09836,1820.7,1820.6,1.7097]
[1746092014760,1.09836,1820.7,1820.6,2.80807]
[1746092015760,1.09836,1820.7,1820.6,1.7097]
[1746092015958,1.09836,1820.7,1820.6,2.80807]
[1746092016156,1.09836,1820.7,1820.6,1.7097]
[1746092016358,1.09836,1820.7,1820.6,2.80807]
[1746092020669,1.09836,1820.7,1820.6,3.61647]
[1746092020957,1.09836,1820.7,1820.6,6.82427]
[1746092021169,1.09836,1820.7,1820.6,3.61647]
[1746092021367,1.09836,1820.7,1820.6,2.80807]
[1746092021670,1.09836,1820.7,1820.6,1.7097]
[1746092022960,1.09836,1820.7,1820.6,2.80807]
[1746092023166,1.09877,1820.0,1819.9,1.09875]
[1746092023361,4.30657,1820.0,1819.9,1.09875]
[1746092024170,1.09869,1820.1,1820.0,1.09873]
[1746092024371,1.09873,1820.0,1819.9,2.75965]
[1746092024572,3.2078,1820.2,1819.9,1.6609]
[1746092024772,1.09871,1820.1,1820.0,1.6609]
[1746092024968,4.30651,1820.1,1820.0,1.6609]
[1746092025671,4.30651,1820.1,1819.7,18.39417492]
[1746092025878,3.2078,1819.8,1819.7,13.16897492]
[1746092026475,4.30665,1819.8,1819.7,14.26788492]
[1746092027575,4.30665,1819.8,1819.7,6.92891]
[1746092028777,4.30665,1819.8,1819.7,5.83]
[1746092028977,1.09891,1819.7,1819.6,2.81294]
[1746092029179,1.09891,1819.7,1819.6,1.09894]
[1746092029675,1.09897,1819.6,1819.5,2.77328]
[1746092033579,1.09897,1819.6,1819.5,1.09898]
[1746092034473,1.09903,1819.5,1819.4,4.68606]
[1746092035174,3.2078,1819.6,1819.5,1.09903]
[1746092035580,4.30677,1819.6,1819.5,1.09903]
[1746092035773,3.2078,1819.6,1819.5,1.09903]
[1746092036171,3.2078,1819.6,1819.5,4.88703]
[1746092036872,1.09894,1819.7,1819.6,1.09891]
[1746092037073,1.09894,1819.7,1819.6,2.74631]
[1746092037680,3.2078,1819.9,1819.8,1.09885]
[1746092038279,3.2078,1819.9,1819.8,4.88685]
[1746092038981,4.30659,1819.9,1819.8,4.88685]
[1746092039678,3.2078,1819.9,1819.8,4.88685]
[1746092045278,4.30659,1819.9,1819.8,4.88685]
[1746092045473,3.2078,1819.9,1819.8,4.88685]
[1746092046084,3.2078,1819.9,1819.8,1.09885]
[1746092046783,6.77859,1819.9,1819.8,1.09885]
[1746092046978,5.6798,1819.9,1819.8,1.09885]
[1746092047178,6.77859,1819.9,1819.8,1.09885]
[1746092047385,5.6798,1819.9,1819.8,1.09885]
[1746092047776,5.6798,1819.9,1819.8,2.74105]
[1746092049383,2.472,1819.9,1819.8,2.74105]
[1746092052192,2.472,1819.9,1819.8,1.09885]
[1746092052387,3.57079,1819.9,1819.8,1.09885]
[1746092052689,2.472,1819.9,1819.8,1.09885]
[1746092053090,3.57079,1819.9,1819.8,1.09885]
[1746092053391,2.472,1819.9,1819.8,1.09885]
[1746092054887,3.57079,1819.9,1819.8,1.09885]
[1746092057482,2.472,1819.9,1819.8,1.09885]
[1746092057897,0.7884,1819.9,1819.8,1.09885]
[1746092058190,4.0778,1820.0,1819.9,1.09879]
[1746092058593,4.0778,1820.0,1819.9,2.75439]
[1746092060294,4.0778,1820.0,1819.9,6.54239]
[1746092060994,3.2078,1820.0,1819.9,6.54239]
[1746092061198,3.2078,1820.0,1819.9,8.18519]
[1746092061493,4.30653,1820.0,1819.9,3.788]
[1746092061696,11.00393,1820.0,1819.9,3.788]
[1746092062192,1.09879,1819.9,1819.8,1.09885]
[1746092062389,3.57619,1819.9,1819.8,1.09885]
[1746092063092,1.09891,1819.8,1819.7,1.09885]
[1746092063293,3.58421,1819.8,1819.7,1.09885]
[1746092068796,3.58421,1819.8,1819.6,1.5932]
[1746092068797,1.09891,1819.7,1819.6,2.69211]
[1746092068989,2.72951,1819.7,1819.6,2.69211]
[1746092070398,0.8631,1819.8,1819.7,1.09891]
[1746092070595,0.8631,1819.8,1819.7,3.52691]
[1746092071093,1.96195,1819.8,1819.7,3.52691]
[1746092071393,3.587,1820.2,1819.7,3.52691]
[1746092071394,3.2078,1820.7,1819.8,2.74714]
[1746092071596,1.93489,1820.4,1820.3,1.09855]
[1746092072097,1.09855,1820.3,1820.2,43.47066]
[1746092072297,2.3991,1820.3,1820.2,43.47066]
[1746092072798,3.49765,1820.3,1820.2,43.47066]
[1746092073499,2.3991,1820.3,1820.2,43.47066]
[1746092073697,3.49765,1820.3,1820.2,43.47066]
[1746092076102,3.49765,1820.3,1820.2,40.8]
[1746092076796,6.70545,1820.3,1820.2,40.8]
[1746092077002,6.70545,1820.3,1820.1,1.09866]
[1746092077003,1.09873,1820.1,1820.0,1.09868]
[1746092077294,4.30653,1820.1,1820.0,1.09868]
[1746092077492,4.30653,1820.1,1820.0,41.89868]
[1746092077693,1.09873,1820.0,1819.9,1.09874]
[1746092077893,4.34913,1820.0,1819.9,1.09874]
[1746092078195,4.34913,1820.0,1819.9,41.89874]
[1746092078498,4.34913,1820.0,1819.9,43.53854]
[1746092079802,0.812,1820.0,1819.9,43.53854]
[1746092080799,1.91073,1820.0,1819.9,43.53854]
[1746092083896,5.96728,1820.1,1819.9,43.53854]
[1746092084102,5.96728,1820.1,1820.0,2.71903]
[1746092084305,5.95382,1820.6,1820.1,2.74664]
[1746092084601,1.09853,1820.4,1820.3,1.09849]
[1746092085002,1.09853,1820.4,1820.3,2.71879]
[1746092086309,4.44788,1820.5,1820.4,1.09849]
[1746092086601,4.30621,1820.6,1820.5,1.09843]
[1746092086996,1.09843,1820.5,1820.4,2.71876]
[1746092087197,1.09855,1820.4,1820.3,1.09852]
[1746092087397,1.96045,1820.4,1820.3,1.09852]
[1746092087602,3.63455,1820.4,1820.3,1.09852]
[1746092088098,1.09855,1820.3,1820.2,41.89861]
[1746092088302,3.58135,1820.3,1820.2,41.89861]
[1746092088502,3.58135,1820.3,1820.2,1.09861]
[1746092091702,3.58135,1820.3,1820.2,2.81821]
[1746092092400,0.8087,1820.3,1820.2,2.81821]
[1746092092603,1.96041,1820.4,1820.3,1.09855]
[1746092092795,1.96041,1820.4,1820.3,2.79345]
[1746092092998,3.48538,1820.5,1820.4,1.09849]
[1746092093296,3.48538,1820.5,1820.4,2.79339]
[1746092094404,2.3869,1820.5,1820.4,2.79339]
[1746092094604,3.48533,1820.5,1820.4,2.79339]
[1746092094806,1.92131,1820.6,1820.5,1.09843]
[1746092095004,1.92131,1820.6,1820.5,2.79333]
[1746092096707,3.51381,1820.6,1820.5,2.79333]
[1746092097102,1.09841,1820.6,1820.5,2.79333]
[1746092097499,1.09841,1820.6,1820.5,3.66443]
[1746092097909,6.30745,1821.0,1820.5,3.66443]
[1746092097910,1.09801,1821.3,1821.2,1.09797]
[1746092098205,1.09799,1821.3,1821.2,1.09797]
[1746092098396,1.09799,1821.3,1821.2,41.89797]
[1746092098595,0.8155,1821.3,1821.2,41.89797]
[1746092098800,1.09795,1821.3,1821.2,41.89797]
[1746092099002,2.69645,1821.3,1821.2,43.51917]
[1746092099202,3.56025,1821.3,1821.2,43.51917]
[1746092099405,1.93323,1821.4,1821.3,1.09795]
[1746092099611,1.09795,1821.3,1821.2,41.89797]
[1746092099907,2.69645,1821.3,1821.2,40.8]
[1746092100105,3.56025,1821.3,1821.2,40.8]
[1746092100308,2.4623,1821.3,1821.2,41.89801]
[1746092100505,1.93323,1821.4,1821.3,1.09795]
[1746092100816,1.93323,1821.4,1821.3,2.71915]
[1746092101103,1.09774,1821.7,1821.6,1.09773]
[1746092101305,3.56004,1821.7,1821.6,1.09773]
[1746092101614,1.09787,1821.5,1821.4,1.09785]
[1746092102511,1.09789,1821.4,1821.3,2.7191]
[1746092102706,1.09795,1821.3,1821.2,47.5698]
[1746092102911,1.09795,1821.3,1821.2,44.0078]
[1746092103101,4.88595,1821.3,1821.2,44.0078]
[1746092103307,1.09813,1821.0,1820.9,3.561]
[1746092103502,2.74528,1821.1,1820.7,3.2078]
[1746092103703,4.49584,1820.9,1820.8,41.89822]
[1746092105612,1.09825,1820.8,1820.7,1.6571]
[1746092105913,1.09831,1820.7,1820.6,4.65934]
[1746092106109,1.09831,1820.7,1820.6,47.07644]
[1746092106414,1.6204,1820.8,1820.6,47.07644]
[1746092106415,2.71869,1820.8,1820.7,1.09831]
[1746092106616,2.71869,1820.8,1820.7,2.71541]
[1746092107115,1.95684,1820.9,1820.8,1.09825]
[1746092107320,1.95684,1820.9,1820.8,1.6171]
[1746092108818,3.65694,1820.9,1820.8,2.71535]
[1746092109013,1.09829,1820.8,1820.7,1.09828]
[1746092109213,2.79839,1820.8,1820.7,1.09828]
[1746092109415,1.7001,1820.8,1820.7,2.70628]
[1746092109616,2.79835,1820.8,1820.7,2.70628]
[1746092110112,1.7001,1820.8,1820.7,2.70628]
[1746092110313,2.79835,1820.8,1820.7,2.70628]
[1746092110711,1.7001,1820.8,1820.7,2.70628]
[1746092111006,1.95682,1820.9,1820.8,1.09825]
[1746092111210,3.57922,1820.9,1820.8,2.79495]
[1746092111721,3.57919,1820.9,1820.8,2.79495]
[1746092114021,1.09825,1820.8,1820.7,4.30606]
[1746092114216,2.80775,1820.8,1820.7,4.30606]
[1746092115823,2.80775,1820.8,1820.7,5.89666]
[1746092116419,1.0982,1820.9,1820.8,1.09825]
[1746092116620,1.0982,1820.9,1820.8,2.68885]
[1746092117017,1.09825,1820.9,1820.8,1.0982]
[1746092117222,2.78615,1820.9,1820.8,1.0982]
[1746092117925,1.09825,1820.8,1820.7,1.6895]
[1746092118122,1.09849,1820.5,1820.4,1.09844]
[1746092118625,2.78639,1820.5,1820.4,41.89844]
[1746092119327,1.09849,1820.5,1820.4,41.89844]
[1746092119831,1.09849,1820.5,1820.4,43.58794]
[1746092121030,1.6879,1820.6,1820.3,7.8883]
[1746092121031,1.09849,1820.4,1820.3,7.8883]
[1746092121228,1.96039,1820.4,1820.3,7.8883]
[1746092121427,2.78715,1820.5,1820.4,1.09849]